Workbook

Sheet Raport finansowy
B2: ROCZNY RAPORT FINANSOWY | K2: 2016 | N2: Wybierz rok raportu w komórce L2
B3: NAZWA FIRMY | N3: Aby edytować dane, wybierz arkusz Wprowadzanie danych finansowych
B5: KLUCZOWE METRYKI | D5: Kliknij, aby zmienić kluczowe metryki raportu
B7: =Obliczenia!B8 -> PRZYCHODY | D7: =Obliczenia!B9 -> ZYSK NETTO | F7: =Obliczenia!B10 -> ODSETKI | H7: =Obliczenia!B11 -> AMORTYZACJA | J7: =Obliczenia!B12 -> ZYSK OPERACYJNY
B8: =IFERROR(Obliczenia!G8,"") -> 541,752 zł | D8: =IFERROR(Obliczenia!G9,"") -> 202,425 zł | F8: =IFERROR(Obliczenia!G10,"") -> 11,368 zł | H8: =IFERROR(Obliczenia!G11,"") -> 16,641 zł | J8: =IFERROR(Obliczenia!G12,"") -> 220,278 zł
B9: =Obliczenia!H8 -> 0% | D9: =Obliczenia!H9 -> 2% | F9: =Obliczenia!H10 -> 14% | H9: =Obliczenia!H11 -> 9% | J9: =Obliczenia!H12 -> -5%
B13: WSZYSTKIE METRYKI | D13: Nie modyfikuj poniższych informacji. Kliknij, aby wprowadzić dane finansowe
B15: METRYKA | D15: ="ROK RAPORTU ("&Wybrany_rok&")" -> ROK RAPORTU (2016) | F15: ="POPRZEDNI ROK ("&Wybrany_rok-1&")" -> POPRZEDNI ROK (2015) | H15: % ZMIANY | I15: =CONCATENATE("TREND ",Lata,"-LETNI") -> TREND 5-LETNI
B16: =Obliczenia!B15 -> PRZYCHODY | D16: =IF($B16="","",Obliczenia!G15) -> 541,751.64 zł | F16: =IF($B16="","",Obliczenia!F15) -> 540,079.89 zł | H16: =IFERROR(D16/F16-1,"") -> 0%
B17: =Obliczenia!B16 -> KOSZTY OPERACYJNE | D17: =IF($B17="","",Obliczenia!G16) -> 283,258.35 zł | F17: =IF($B17="","",Obliczenia!F16) -> 242,649.99 zł | H17: 17%
B18: =Obliczenia!B17 -> ZYSK OPERACYJNY | D18: =IF($B18="","",Obliczenia!G17) -> 220,277.97 zł | F18: =IF($B18="","",Obliczenia!F17) -> 231,953.49 zł | H18: -5%
B19: =Obliczenia!B18 -> AMORTYZACJA | D19: =IF($B19="","",Obliczenia!G18) -> 16,640.64 zł | F19: =IF($B19="","",Obliczenia!F18) -> 15,205.26 zł | H19: 9%
B20: =Obliczenia!B19 -> ODSETKI | D20: =IF($B20="","",Obliczenia!G19) -> 11,368.41 zł | F20: =IF($B20="","",Obliczenia!F19) -> 10,014.90 zł | H20: 14%
B21: =Obliczenia!B20 -> ZYSK NETTO | D21: =IF($B21="","",Obliczenia!G20) -> 202,424.55 zł | F21: =IF($B21="","",Obliczenia!F20) -> 198,816.30 zł | H21: 2%
B22: =Obliczenia!B21 -> PODATEK | D22: =IF($B22="","",Obliczenia!G21) -> 94,224.75 zł | F22: =IF($B22="","",Obliczenia!F21) -> 88,273.59 zł | H22: 7%
B23: =Obliczenia!B22 -> ZYSK PO OPODATKOWANIU | D23: =IF($B23="","",Obliczenia!G22) -> 150,743.04 zł | F23: =IF($B23="","",Obliczenia!F22) -> 127,314.60 zł | H23: 18%
B24: =Obliczenia!B23 -> METRYKA 1 | D24: =IF($B24="","",Obliczenia!G23) -> 59.88 zł | F24: =IF($B24="","",Obliczenia!F23) -> 50.34 zł | H24: 19%
B25: =Obliczenia!B24 -> METRYKA 2 | D25: =IF($B25="","",Obliczenia!G24) -> 78.03 zł | F25: =IF($B25="","",Obliczenia!F24) -> 65.52 zł | H25: 19%
B26: =Obliczenia!B25 -> METRYKA 3 | D26: =IF($B26="","",Obliczenia!G25) -> 93.24 zł | F26: =IF($B26="","",Obliczenia!F25) -> 79.17 zł | H26: 18%
B27: =Obliczenia!B26 -> METRYKA 4 | D27: =IF($B27="","",Obliczenia!G26) -> 44.76 zł | F27: =IF($B27="","",Obliczenia!F26) -> 43.77 zł | H27: 2%
B28: =Obliczenia!B27 -> METRYKA 5 | D28: =IF($B28="","",Obliczenia!G27) -> 3.09 zł | F28: =IF($B28="","",Obliczenia!F27) -> 3.00 zł | H28: 3%
B29: =Obliczenia!B28 -> METRYKA 6 | D29: =IF($B29="","",Obliczenia!G28) -> 1.02 zł | F29: =IF($B29="","",Obliczenia!F28) -> 0.90 zł | H29: 13%
B30: =Obliczenia!B29 ->  | D30: =IF($B30="","",Obliczenia!G29) ->  | F30: =IF($B30="","",Obliczenia!F29) -> 
B31: =Obliczenia!B30 ->  | D31: =IF($B31="","",Obliczenia!G30) ->  | F31: =IF($B31="","",Obliczenia!F30) -> 
B32: =Obliczenia!B31 ->  | D32: =IF($B32="","",Obliczenia!G31) ->  | F32: =IF($B32="","",Obliczenia!F31) -> 
B33: =Obliczenia!B32 ->  | D33: =IF($B33="","",Obliczenia!G32) ->  | F33: =IF($B33="","",Obliczenia!F32) -> 
B34: =Obliczenia!B33 ->  | D34: =IF($B34="","",Obliczenia!G33) ->  | F34: =IF($B34="","",Obliczenia!F33) -> 
B35: =Obliczenia!B34 ->  | D35: =IF($B35="","",Obliczenia!G34) ->  | F35: =IF($B35="","",Obliczenia!F34) -> 
B36: =Obliczenia!B35 ->  | D36: =IF($B36="","",Obliczenia!G35) ->  | F36: =IF($B36="","",Obliczenia!F35) -> 
B37: =Obliczenia!B36 ->  | D37: =IF($B37="","",Obliczenia!G36) ->  | F37: =IF($B37="","",Obliczenia!F36) -> 
B38: =Obliczenia!B37 ->  | D38: =IF($B38="","",Obliczenia!G37) ->  | F38: =IF($B38="","",Obliczenia!F37) -> 
B39: =Obliczenia!B38 ->  | D39: =IF($B39="","",Obliczenia!G38) ->  | F39: =IF($B39="","",Obliczenia!F38) -> 
B40: =Obliczenia!B39 ->  | D40: =IF($B40="","",Obliczenia!G39) ->  | F40: =IF($B40="","",Obliczenia!F39) -> 

Sheet Wprowadzanie danych finansowych
B2: WPROWADŹ DANE FINANSOWE
B3: MOŻESZ ZDEFINIOWAĆ DO 25 KLUCZOWYCH METRYK DLA 7 LAT
B4: Kliknij, aby wyświetlić raport finansowy
B5: NAZWA METRYKI | C5: 2010 | D5: 2011 | E5: 2012 | F5: 2013 | G5: 2014 | H5: 2015 | I5: 2016
B6: PRZYCHODY | C6: 375,000.00 zł | D6: 402,412.35 zł | E6: 428,185.14 zł | F6: 452,062.38 zł | G6: 495,133.68 zł | H6: 540,079.89 zł | I6: 541,751.64 zł
B7: KOSZTY OPERACYJNE | C7: 195,000.00 zł | D7: 212,886.93 zł | E7: 227,774.58 zł | F7: 236,703.81 zł | G7: 245,023.11 zł | H7: 242,649.99 zł | I7: 283,258.35 zł
B8: ZYSK OPERACYJNY | C8: 180,000.00 zł | D8: 192,621.90 zł | E8: 206,573.07 zł | F8: 226,929.75 zł | G8: 230,265.78 zł | H8: 231,953.49 zł | I8: 220,277.97 zł
B9: AMORTYZACJA | C9: 13,500.00 zł | D9: 13,553.31 zł | E9: 13,970.76 zł | F9: 14,922.63 zł | G9: 15,072.33 zł | H9: 15,205.26 zł | I9: 16,640.64 zł
B10: ODSETKI | C10: 7,500.00 zł | D10: 8,237.46 zł | E10: 8,679.33 zł | F10: 9,408.36 zł | G10: 9,445.59 zł | H10: 10,014.90 zł | I10: 11,368.41 zł
B11: ZYSK NETTO | C11: 162,000.00 zł | D11: 164,283.23 zł | E11: 167,582.43 zł | F11: 179,243.85 zł | G11: 184,450.77 zł | H11: 198,816.30 zł | I11: 202,424.55 zł
B12: PODATEK | C12: 66,000.00 zł | D12: 71,761.62 zł | E12: 76,730.22 zł | F12: 82,496.58 zł | G12: 85,007.01 zł | H12: 88,273.59 zł | I12: 94,224.75 zł
B13: ZYSK PO OPODATKOWANIU | C13: 96,000.00 zł | D13: 104,830.47 zł | E13: 115,255.59 zł | F13: 119,685.15 zł | G13: 121,823.19 zł | H13: 127,314.60 zł | I13: 150,743.04 zł
B14: METRYKA 1 | C14: 38.40 zł | D14: 38.43 zł | E14: 41.34 zł | F14: 42.87 zł | G14: 46.71 zł | H14: 50.34 zł | I14: 59.88 zł
B15: METRYKA 2 | C15: 54.60 zł | D15: 55.77 zł | E15: 57.66 zł | F15: 60.51 zł | G15: 61.44 zł | H15: 65.52 zł | I15: 78.03 zł
B16: METRYKA 3 | C16: 57.30 zł | D16: 61.65 zł | E16: 65.61 zł | F16: 69.57 zł | G16: 74.01 zł | H16: 79.17 zł | I16: 93.24 zł
B17: METRYKA 4 | C17: 36.30 zł | D17: 36.63 zł | E17: 37.77 zł | F17: 41.10 zł | G17: 41.28 zł | H17: 43.77 zł | I17: 44.76 zł
B18: METRYKA 5 | C18: 2.25 zł | D18: 2.37 zł | E18: 2.55 zł | F18: 2.67 zł | G18: 2.73 zł | H18: 3.00 zł | I18: 3.09 zł
B19: METRYKA 6 | C19: 0.69 zł | D19: 0.75 zł | E19: 0.81 zł | F19: 0.84 zł | G19: 0.87 zł | H19: 0.90 zł | I19: 1.02 zł

Sheet Ustawienia kluczowych metryk
B2: TUTAJ ZDEFINIUJ KLUCZOWE METRYKI
B3: WYBIERZ DO 5 KLUCZOWYCH METRYK U GÓRY RAPORTU
B4: Kliknij, aby wyświetlić raport finansowy
B5: 1 | C5: PRZYCHODY | E5: =IF(ISBLANK(C5),"← Wybierz wartość z listy rozwijanej",IF(COUNTIF($C$5:C5,C5)>1,"Wybrano "&C5&" więcej niż jeden raz.","")) -> 
B6: 2 | C6: ZYSK NETTO | E6: =IF(ISBLANK(C6),"← Wybierz wartość z listy rozwijanej",IF(COUNTIF($C$5:C6,C6)>1,"Wybrano "&C6&" więcej niż jeden raz.","")) -> 
B7: 3 | C7: ODSETKI | E7: =IF(ISBLANK(C7),"← Wybierz wartość z listy rozwijanej",IF(COUNTIF($C$5:C7,C7)>1,"Wybrano "&C7&" więcej niż jeden raz.","")) -> 
B8: 4 | C8: AMORTYZACJA | E8: =IF(ISBLANK(C8),"← Wybierz wartość z listy rozwijanej",IF(COUNTIF($C$5:C8,C8)>1,"Wybrano "&C8&" więcej niż jeden raz.","")) -> 
B9: 5 | C9: ZYSK OPERACYJNY | E9: =IF(ISBLANK(C9),"← Wybierz wartość z listy rozwijanej",IF(COUNTIF($C$5:C9,C9)>1,"Wybrano "&C9&" więcej niż jeden raz.","")) -> 

Sheet Obliczenia (hidden)
A1: Ten arkusz kalkulacyjny jest używany na potrzeby obliczeń w raporcie finansowym i powinien pozostać ukryty.
D2: Położenie
B3: Ten rok | C3: =Wybrany_rok -> 2016 | D3: =MATCH(C3,lst_Lata,0)+1 -> 8
B4: Poprzedni rok | C4: =C3-1 -> 2015 | D4: =MATCH(C4,lst_Lata,0)+1 -> 7
B6: Położenie | C6: =MATCH(C7,lst_Lata,0)+1 -> 4 | D6: =MATCH(D7,lst_Lata,0)+1 -> 5 | E6: =MATCH(E7,lst_Lata,0)+1 -> 6 | F6: =MATCH(F7,lst_Lata,0)+1 -> 7 | G6: =MATCH(G7,lst_Lata,0)+1 -> 8 | I6: =COUNT(C6:G6) -> 5
B7: Kluczowe metryki | C7: =D7-1 -> 2012 | D7: =E7-1 -> 2013 | E7: =F7-1 -> 2014 | F7: =G7-1 -> 2015 | G7: =C3 -> 2016
A8: =MATCH(B8,'Wprowadzanie danych finansowych'!$B$6:$B$30,0) -> 1 | B8: =IF('Ustawienia kluczowych metryk'!C5="","",'Ustawienia kluczowych metryk'!C5) -> PRZYCHODY | C8: =IFERROR(INDEX('Wprowadzanie danych finansowych'!$B$6:$I$30,$A8,C$6),NA()) -> 428185.14 | D8: =IFERROR(INDEX('Wprowadzanie danych finansowych'!$B$6:$I$30,$A8,D$6),NA()) -> 452062.38 | E8: =IFERROR(INDEX('Wprowadzanie danych finansowych'!$B$6:$I$30,$A8,E$6),NA()) -> 495133.68 | F8: =IFERROR(INDEX('Wprowadzanie danych finansowych'!$B$6:$I$30,$A8,F$6),NA()) -> 540079.89 | G8: =IFERROR(INDEX('Wprowadzanie danych finansowych'!$B$6:$I$30,$A8,G$6),NA()) -> 541751.64 | H8: =IFERROR(G8/F8-1,"") -> 0%
A9: =MATCH(B9,'Wprowadzanie danych finansowych'!$B$6:$B$30,0) -> 6 | B9: =IF('Ustawienia kluczowych metryk'!C6="","",'Ustawienia kluczowych metryk'!C6) -> ZYSK NETTO | C9: =IFERROR(INDEX('Wprowadzanie danych finansowych'!$B$6:$I$30,$A9,C$6),NA()) -> 167582.43 | D9: =IFERROR(INDEX('Wprowadzanie danych finansowych'!$B$6:$I$30,$A9,D$6),NA()) -> 179243.85 | E9: =IFERROR(INDEX('Wprowadzanie danych finansowych'!$B$6:$I$30,$A9,E$6),NA()) -> 184450.77 | F9: =IFERROR(INDEX('Wprowadzanie danych finansowych'!$B$6:$I$30,$A9,F$6),NA()) -> 198816.3 | G9: =IFERROR(INDEX('Wprowadzanie danych finansowych'!$B$6:$I$30,$A9,G$6),NA()) -> 202424.55 | H9: =IFERROR(G9/F9-1,"") -> 2%
A10: =MATCH(B10,'Wprowadzanie danych finansowych'!$B$6:$B$30,0) -> 5 | B10: =IF('Ustawienia kluczowych metryk'!C7="","",'Ustawienia kluczowych metryk'!C7) -> ODSETKI | C10: =IFERROR(INDEX('Wprowadzanie danych finansowych'!$B$6:$I$30,$A10,C$6),NA()) -> 8679.33 | D10: =IFERROR(INDEX('Wprowadzanie danych finansowych'!$B$6:$I$30,$A10,D$6),NA()) -> 9408.36 | E10: =IFERROR(INDEX('Wprowadzanie danych finansowych'!$B$6:$I$30,$A10,E$6),NA()) -> 9445.59 | F10: =IFERROR(INDEX('Wprowadzanie danych finansowych'!$B$6:$I$30,$A10,F$6),NA()) -> 10014.9 | G10: =IFERROR(INDEX('Wprowadzanie danych finansowych'!$B$6:$I$30,$A10,G$6),NA()) -> 11368.41 | H10: 14%
A11: =MATCH(B11,'Wprowadzanie danych finansowych'!$B$6:$B$30,0) -> 4 | B11: =IF('Ustawienia kluczowych metryk'!C8="","",'Ustawienia kluczowych metryk'!C8) -> AMORTYZACJA | C11: =IFERROR(INDEX('Wprowadzanie danych finansowych'!$B$6:$I$30,$A11,C$6),NA()) -> 13970.76 | D11: =IFERROR(INDEX('Wprowadzanie danych finansowych'!$B$6:$I$30,$A11,D$6),NA()) -> 14922.63 | E11: =IFERROR(INDEX('Wprowadzanie danych finansowych'!$B$6:$I$30,$A11,E$6),NA()) -> 15072.33 | F11: =IFERROR(INDEX('Wprowadzanie danych finansowych'!$B$6:$I$30,$A11,F$6),NA()) -> 15205.26 | G11: =IFERROR(INDEX('Wprowadzanie danych finansowych'!$B$6:$I$30,$A11,G$6),NA()) -> 16640.64 | H11: 9%
A12: =MATCH(B12,'Wprowadzanie danych finansowych'!$B$6:$B$30,0) -> 3 | B12: =IF('Ustawienia kluczowych metryk'!C9="","",'Ustawienia kluczowych metryk'!C9) -> ZYSK OPERACYJNY | C12: =IFERROR(INDEX('Wprowadzanie danych finansowych'!$B$6:$I$30,$A12,C$6),NA()) -> 206573.07 | D12: =IFERROR(INDEX('Wprowadzanie danych finansowych'!$B$6:$I$30,$A12,D$6),NA()) -> 226929.75 | E12: =IFERROR(INDEX('Wprowadzanie danych finansowych'!$B$6:$I$30,$A12,E$6),NA()) -> 230265.78 | F12: =IFERROR(INDEX('Wprowadzanie danych finansowych'!$B$6:$I$30,$A12,F$6),NA()) -> 231953.49 | G12: =IFERROR(INDEX('Wprowadzanie danych finansowych'!$B$6:$I$30,$A12,G$6),NA()) -> 220277.97 | H12: -5%
B14: Wszystkie metryki (do 25 metryk)
A15: =ROWS($B$15:B15) -> 1 | B15: =IF('Wprowadzanie danych finansowych'!B6=0,"",'Wprowadzanie danych finansowych'!B6) -> PRZYCHODY | C15: =IF($B15="",NA(),IFERROR(INDEX('Wprowadzanie danych finansowych'!$B$6:$I$30,$A15,C$6),NA())) -> 428185.14 | D15: =IF($B15="",NA(),IFERROR(INDEX('Wprowadzanie danych finansowych'!$B$6:$I$30,$A15,D$6),NA())) -> 452062.38 | E15: =IF($B15="",NA(),IFERROR(INDEX('Wprowadzanie danych finansowych'!$B$6:$I$30,$A15,E$6),NA())) -> 495133.68 | F15: =IF($B15="",NA(),IFERROR(INDEX('Wprowadzanie danych finansowych'!$B$6:$I$30,$A15,F$6),NA())) -> 540079.89 | G15: =IF($B15="",NA(),IFERROR(INDEX('Wprowadzanie danych finansowych'!$B$6:$I$30,$A15,G$6),NA())) -> 541751.64
A16: =ROWS($B$15:B16) -> 2 | B16: =IF('Wprowadzanie danych finansowych'!B7=0,"",'Wprowadzanie danych finansowych'!B7) -> KOSZTY OPERACYJNE | C16: =IF(B16="",NA(),IFERROR(INDEX('Wprowadzanie danych finansowych'!$B$6:$I$30,$A16,C$6),NA())) -> 227774.58 | D16: =IF($B16="",NA(),IFERROR(INDEX('Wprowadzanie danych finansowych'!$B$6:$I$30,$A16,D$6),NA())) -> 236703.81 | E16: =IF($B16="",NA(),IFERROR(INDEX('Wprowadzanie danych finansowych'!$B$6:$I$30,$A16,E$6),NA())) -> 245023.11 | F16: =IF($B16="",NA(),IFERROR(INDEX('Wprowadzanie danych finansowych'!$B$6:$I$30,$A16,F$6),NA())) -> 242649.99 | G16: =IF($B16="",NA(),IFERROR(INDEX('Wprowadzanie danych finansowych'!$B$6:$I$30,$A16,G$6),NA())) -> 283258.35
A17: =ROWS($B$15:B17) -> 3 | B17: =IF('Wprowadzanie danych finansowych'!B8=0,"",'Wprowadzanie danych finansowych'!B8) -> ZYSK OPERACYJNY | C17: =IF(B17="",NA(),IFERROR(INDEX('Wprowadzanie danych finansowych'!$B$6:$I$30,$A17,C$6),NA())) -> 206573.07 | D17: =IF($B17="",NA(),IFERROR(INDEX('Wprowadzanie danych finansowych'!$B$6:$I$30,$A17,D$6),NA())) -> 226929.75 | E17: =IF($B17="",NA(),IFERROR(INDEX('Wprowadzanie danych finansowych'!$B$6:$I$30,$A17,E$6),NA())) -> 230265.78 | F17: =IF($B17="",NA(),IFERROR(INDEX('Wprowadzanie danych finansowych'!$B$6:$I$30,$A17,F$6),NA())) -> 231953.49 | G17: =IF($B17="",NA(),IFERROR(INDEX('Wprowadzanie danych finansowych'!$B$6:$I$30,$A17,G$6),NA())) -> 220277.97
A18: =ROWS($B$15:B18) -> 4 | B18: =IF('Wprowadzanie danych finansowych'!B9=0,"",'Wprowadzanie danych finansowych'!B9) -> AMORTYZACJA | C18: =IF(B18="",NA(),IFERROR(INDEX('Wprowadzanie danych finansowych'!$B$6:$I$30,$A18,C$6),NA())) -> 13970.76 | D18: =IF($B18="",NA(),IFERROR(INDEX('Wprowadzanie danych finansowych'!$B$6:$I$30,$A18,D$6),NA())) -> 14922.63 | E18: =IF($B18="",NA(),IFERROR(INDEX('Wprowadzanie danych finansowych'!$B$6:$I$30,$A18,E$6),NA())) -> 15072.33 | F18: =IF($B18="",NA(),IFERROR(INDEX('Wprowadzanie danych finansowych'!$B$6:$I$30,$A18,F$6),NA())) -> 15205.26 | G18: =IF($B18="",NA(),IFERROR(INDEX('Wprowadzanie danych finansowych'!$B$6:$I$30,$A18,G$6),NA())) -> 16640.64
A19: =ROWS($B$15:B19) -> 5 | B19: =IF('Wprowadzanie danych finansowych'!B10=0,"",'Wprowadzanie danych finansowych'!B10) -> ODSETKI | C19: =IF(B19="",NA(),IFERROR(INDEX('Wprowadzanie danych finansowych'!$B$6:$I$30,$A19,C$6),NA())) -> 8679.33 | D19: =IF($B19="",NA(),IFERROR(INDEX('Wprowadzanie danych finansowych'!$B$6:$I$30,$A19,D$6),NA())) -> 9408.36 | E19: =IF($B19="",NA(),IFERROR(INDEX('Wprowadzanie danych finansowych'!$B$6:$I$30,$A19,E$6),NA())) -> 9445.59 | F19: =IF($B19="",NA(),IFERROR(INDEX('Wprowadzanie danych finansowych'!$B$6:$I$30,$A19,F$6),NA())) -> 10014.9 | G19: =IF($B19="",NA(),IFERROR(INDEX('Wprowadzanie danych finansowych'!$B$6:$I$30,$A19,G$6),NA())) -> 11368.41
A20: =ROWS($B$15:B20) -> 6 | B20: =IF('Wprowadzanie danych finansowych'!B11=0,"",'Wprowadzanie danych finansowych'!B11) -> ZYSK NETTO | C20: =IF(B20="",NA(),IFERROR(INDEX('Wprowadzanie danych finansowych'!$B$6:$I$30,$A20,C$6),NA())) -> 167582.43 | D20: =IF($B20="",NA(),IFERROR(INDEX('Wprowadzanie danych finansowych'!$B$6:$I$30,$A20,D$6),NA())) -> 179243.85 | E20: =IF($B20="",NA(),IFERROR(INDEX('Wprowadzanie danych finansowych'!$B$6:$I$30,$A20,E$6),NA())) -> 184450.77 | F20: =IF($B20="",NA(),IFERROR(INDEX('Wprowadzanie danych finansowych'!$B$6:$I$30,$A20,F$6),NA())) -> 198816.3 | G20: =IF($B20="",NA(),IFERROR(INDEX('Wprowadzanie danych finansowych'!$B$6:$I$30,$A20,G$6),NA())) -> 202424.55
A21: =ROWS($B$15:B21) -> 7 | B21: =IF('Wprowadzanie danych finansowych'!B12=0,"",'Wprowadzanie danych finansowych'!B12) -> PODATEK | C21: =IF(B21="",NA(),IFERROR(INDEX('Wprowadzanie danych finansowych'!$B$6:$I$30,$A21,C$6),NA())) -> 76730.22 | D21: =IF($B21="",NA(),IFERROR(INDEX('Wprowadzanie danych finansowych'!$B$6:$I$30,$A21,D$6),NA())) -> 82496.58 | E21: =IF($B21="",NA(),IFERROR(INDEX('Wprowadzanie danych finansowych'!$B$6:$I$30,$A21,E$6),NA())) -> 85007.01 | F21: =IF($B21="",NA(),IFERROR(INDEX('Wprowadzanie danych finansowych'!$B$6:$I$30,$A21,F$6),NA())) -> 88273.59 | G21: =IF($B21="",NA(),IFERROR(INDEX('Wprowadzanie danych finansowych'!$B$6:$I$30,$A21,G$6),NA())) -> 94224.75
A22: =ROWS($B$15:B22) -> 8 | B22: =IF('Wprowadzanie danych finansowych'!B13=0,"",'Wprowadzanie danych finansowych'!B13) -> ZYSK PO OPODATKOWANIU | C22: =IF(B22="",NA(),IFERROR(INDEX('Wprowadzanie danych finansowych'!$B$6:$I$30,$A22,C$6),NA())) -> 115255.59 | D22: =IF($B22="",NA(),IFERROR(INDEX('Wprowadzanie danych finansowych'!$B$6:$I$30,$A22,D$6),NA())) -> 119685.15 | E22: =IF($B22="",NA(),IFERROR(INDEX('Wprowadzanie danych finansowych'!$B$6:$I$30,$A22,E$6),NA())) -> 121823.19 | F22: =IF($B22="",NA(),IFERROR(INDEX('Wprowadzanie danych finansowych'!$B$6:$I$30,$A22,F$6),NA())) -> 127314.6 | G22: =IF($B22="",NA(),IFERROR(INDEX('Wprowadzanie danych finansowych'!$B$6:$I$30,$A22,G$6),NA())) -> 150743.04
A23: =ROWS($B$15:B23) -> 9 | B23: =IF('Wprowadzanie danych finansowych'!B14=0,"",'Wprowadzanie danych finansowych'!B14) -> METRYKA 1 | C23: =IF(B23="",NA(),IFERROR(INDEX('Wprowadzanie danych finansowych'!$B$6:$I$30,$A23,C$6),NA())) -> 41.34 | D23: =IF($B23="",NA(),IFERROR(INDEX('Wprowadzanie danych finansowych'!$B$6:$I$30,$A23,D$6),NA())) -> 42.87 | E23: =IF($B23="",NA(),IFERROR(INDEX('Wprowadzanie danych finansowych'!$B$6:$I$30,$A23,E$6),NA())) -> 46.71 | F23: =IF($B23="",NA(),IFERROR(INDEX('Wprowadzanie danych finansowych'!$B$6:$I$30,$A23,F$6),NA())) -> 50.34 | G23: =IF($B23="",NA(),IFERROR(INDEX('Wprowadzanie danych finansowych'!$B$6:$I$30,$A23,G$6),NA())) -> 59.88
A24: =ROWS($B$15:B24) -> 10 | B24: =IF('Wprowadzanie danych finansowych'!B15=0,"",'Wprowadzanie danych finansowych'!B15) -> METRYKA 2 | C24: =IF(B24="",NA(),IFERROR(INDEX('Wprowadzanie danych finansowych'!$B$6:$I$30,$A24,C$6),NA())) -> 57.66 | D24: =IF($B24="",NA(),IFERROR(INDEX('Wprowadzanie danych finansowych'!$B$6:$I$30,$A24,D$6),NA())) -> 60.51 | E24: =IF($B24="",NA(),IFERROR(INDEX('Wprowadzanie danych finansowych'!$B$6:$I$30,$A24,E$6),NA())) -> 61.44 | F24: =IF($B24="",NA(),IFERROR(INDEX('Wprowadzanie danych finansowych'!$B$6:$I$30,$A24,F$6),NA())) -> 65.52 | G24: =IF($B24="",NA(),IFERROR(INDEX('Wprowadzanie danych finansowych'!$B$6:$I$30,$A24,G$6),NA())) -> 78.03
A25: =ROWS($B$15:B25) -> 11 | B25: =IF('Wprowadzanie danych finansowych'!B16=0,"",'Wprowadzanie danych finansowych'!B16) -> METRYKA 3 | C25: =IF(B25="",NA(),IFERROR(INDEX('Wprowadzanie danych finansowych'!$B$6:$I$30,$A25,C$6),NA())) -> 65.61 | D25: =IF($B25="",NA(),IFERROR(INDEX('Wprowadzanie danych finansowych'!$B$6:$I$30,$A25,D$6),NA())) -> 69.57 | E25: =IF($B25="",NA(),IFERROR(INDEX('Wprowadzanie danych finansowych'!$B$6:$I$30,$A25,E$6),NA())) -> 74.01 | F25: =IF($B25="",NA(),IFERROR(INDEX('Wprowadzanie danych finansowych'!$B$6:$I$30,$A25,F$6),NA())) -> 79.17 | G25: =IF($B25="",NA(),IFERROR(INDEX('Wprowadzanie danych finansowych'!$B$6:$I$30,$A25,G$6),NA())) -> 93.24
A26: =ROWS($B$15:B26) -> 12 | B26: =IF('Wprowadzanie danych finansowych'!B17=0,"",'Wprowadzanie danych finansowych'!B17) -> METRYKA 4 | C26: =IF(B26="",NA(),IFERROR(INDEX('Wprowadzanie danych finansowych'!$B$6:$I$30,$A26,C$6),NA())) -> 37.77 | D26: =IF($B26="",NA(),IFERROR(INDEX('Wprowadzanie danych finansowych'!$B$6:$I$30,$A26,D$6),NA())) -> 41.1 | E26: =IF($B26="",NA(),IFERROR(INDEX('Wprowadzanie danych finansowych'!$B$6:$I$30,$A26,E$6),NA())) -> 41.28 | F26: =IF($B26="",NA(),IFERROR(INDEX('Wprowadzanie danych finansowych'!$B$6:$I$30,$A26,F$6),NA())) -> 43.77 | G26: =IF($B26="",NA(),IFERROR(INDEX('Wprowadzanie danych finansowych'!$B$6:$I$30,$A26,G$6),NA())) -> 44.76
A27: =ROWS($B$15:B27) -> 13 | B27: =IF('Wprowadzanie danych finansowych'!B18=0,"",'Wprowadzanie danych finansowych'!B18) -> METRYKA 5 | C27: =IF(B27="",NA(),IFERROR(INDEX('Wprowadzanie danych finansowych'!$B$6:$I$30,$A27,C$6),NA())) -> 2.55 | D27: =IF($B27="",NA(),IFERROR(INDEX('Wprowadzanie danych finansowych'!$B$6:$I$30,$A27,D$6),NA())) -> 2.67 | E27: =IF($B27="",NA(),IFERROR(INDEX('Wprowadzanie danych finansowych'!$B$6:$I$30,$A27,E$6),NA())) -> 2.73 | F27: =IF($B27="",NA(),IFERROR(INDEX('Wprowadzanie danych finansowych'!$B$6:$I$30,$A27,F$6),NA())) -> 3 | G27: =IF($B27="",NA(),IFERROR(INDEX('Wprowadzanie danych finansowych'!$B$6:$I$30,$A27,G$6),NA())) -> 3.09
A28: =ROWS($B$15:B28) -> 14 | B28: =IF('Wprowadzanie danych finansowych'!B19=0,"",'Wprowadzanie danych finansowych'!B19) -> METRYKA 6 | C28: =IF(B28="",NA(),IFERROR(INDEX('Wprowadzanie danych finansowych'!$B$6:$I$30,$A28,C$6),NA())) -> 0.81 | D28: =IF($B28="",NA(),IFERROR(INDEX('Wprowadzanie danych finansowych'!$B$6:$I$30,$A28,D$6),NA())) -> 0.84 | E28: =IF($B28="",NA(),IFERROR(INDEX('Wprowadzanie danych finansowych'!$B$6:$I$30,$A28,E$6),NA())) -> 0.87 | F28: =IF($B28="",NA(),IFERROR(INDEX('Wprowadzanie danych finansowych'!$B$6:$I$30,$A28,F$6),NA())) -> 0.9 | G28: =IF($B28="",NA(),IFERROR(INDEX('Wprowadzanie danych finansowych'!$B$6:$I$30,$A28,G$6),NA())) -> 1.02
A29: =ROWS($B$15:B29) -> 15 | B29: =IF('Wprowadzanie danych finansowych'!B20=0,"",'Wprowadzanie danych finansowych'!B20) ->  | C29: =IF(B29="",NA(),IFERROR(INDEX('Wprowadzanie danych finansowych'!$B$6:$I$30,$A29,C$6),NA())) ->  | D29: =IF(B29="",NA(),IFERROR(INDEX('Wprowadzanie danych finansowych'!$B$6:$I$30,$A29,D$6),NA())) ->  | E29: =IF(B29="",NA(),IFERROR(INDEX('Wprowadzanie danych finansowych'!$B$6:$I$30,$A29,E$6),NA())) ->  | F29: =IF(B29="",NA(),IFERROR(INDEX('Wprowadzanie danych finansowych'!$B$6:$I$30,$A29,F$6),NA())) ->  | G29: =IF(B29="",NA(),IFERROR(INDEX('Wprowadzanie danych finansowych'!$B$6:$I$30,$A29,G$6),NA())) -> 
A30: =ROWS($B$15:B30) -> 16 | B30: =IF('Wprowadzanie danych finansowych'!B21=0,"",'Wprowadzanie danych finansowych'!B21) ->  | C30: =IF(B30="",NA(),IFERROR(INDEX('Wprowadzanie danych finansowych'!$B$6:$I$30,$A30,C$6),NA())) ->  | D30: =IF(B30="",NA(),IFERROR(INDEX('Wprowadzanie danych finansowych'!$B$6:$I$30,$A30,D$6),NA())) ->  | E30: =IF(B30="",NA(),IFERROR(INDEX('Wprowadzanie danych finansowych'!$B$6:$I$30,$A30,E$6),NA())) ->  | F30: =IF(B30="",NA(),IFERROR(INDEX('Wprowadzanie danych finansowych'!$B$6:$I$30,$A30,F$6),NA())) ->  | G30: =IF(B30="",NA(),IFERROR(INDEX('Wprowadzanie danych finansowych'!$B$6:$I$30,$A30,G$6),NA())) -> 
A31: =ROWS($B$15:B31) -> 17 | B31: =IF('Wprowadzanie danych finansowych'!B22=0,"",'Wprowadzanie danych finansowych'!B22) ->  | C31: =IF(B31="",NA(),IFERROR(INDEX('Wprowadzanie danych finansowych'!$B$6:$I$30,$A31,C$6),NA())) ->  | D31: =IF(B31="",NA(),IFERROR(INDEX('Wprowadzanie danych finansowych'!$B$6:$I$30,$A31,D$6),NA())) ->  | E31: =IF(B31="",NA(),IFERROR(INDEX('Wprowadzanie danych finansowych'!$B$6:$I$30,$A31,E$6),NA())) ->  | F31: =IF(B31="",NA(),IFERROR(INDEX('Wprowadzanie danych finansowych'!$B$6:$I$30,$A31,F$6),NA())) ->  | G31: =IF(B31="",NA(),IFERROR(INDEX('Wprowadzanie danych finansowych'!$B$6:$I$30,$A31,G$6),NA())) -> 
A32: =ROWS($B$15:B32) -> 18 | B32: =IF('Wprowadzanie danych finansowych'!B23=0,"",'Wprowadzanie danych finansowych'!B23) ->  | C32: =IF(B32="",NA(),IFERROR(INDEX('Wprowadzanie danych finansowych'!$B$6:$I$30,$A32,C$6),NA())) ->  | D32: =IF(B32="",NA(),IFERROR(INDEX('Wprowadzanie danych finansowych'!$B$6:$I$30,$A32,D$6),NA())) ->  | E32: =IF(B32="",NA(),IFERROR(INDEX('Wprowadzanie danych finansowych'!$B$6:$I$30,$A32,E$6),NA())) ->  | F32: =IF(B32="",NA(),IFERROR(INDEX('Wprowadzanie danych finansowych'!$B$6:$I$30,$A32,F$6),NA())) ->  | G32: =IF(B32="",NA(),IFERROR(INDEX('Wprowadzanie danych finansowych'!$B$6:$I$30,$A32,G$6),NA())) -> 
A33: =ROWS($B$15:B33) -> 19 | B33: =IF('Wprowadzanie danych finansowych'!B24=0,"",'Wprowadzanie danych finansowych'!B24) ->  | C33: =IF(B33="",NA(),IFERROR(INDEX('Wprowadzanie danych finansowych'!$B$6:$I$30,$A33,C$6),NA())) ->  | D33: =IF(B33="",NA(),IFERROR(INDEX('Wprowadzanie danych finansowych'!$B$6:$I$30,$A33,D$6),NA())) ->  | E33: =IF(B33="",NA(),IFERROR(INDEX('Wprowadzanie danych finansowych'!$B$6:$I$30,$A33,E$6),NA())) ->  | F33: =IF(B33="",NA(),IFERROR(INDEX('Wprowadzanie danych finansowych'!$B$6:$I$30,$A33,F$6),NA())) ->  | G33: =IF(B33="",NA(),IFERROR(INDEX('Wprowadzanie danych finansowych'!$B$6:$I$30,$A33,G$6),NA())) -> 
A34: =ROWS($B$15:B34) -> 20 | B34: =IF('Wprowadzanie danych finansowych'!B25=0,"",'Wprowadzanie danych finansowych'!B25) ->  | C34: =IF(B34="",NA(),IFERROR(INDEX('Wprowadzanie danych finansowych'!$B$6:$I$30,$A34,C$6),NA())) ->  | D34: =IF(B34="",NA(),IFERROR(INDEX('Wprowadzanie danych finansowych'!$B$6:$I$30,$A34,D$6),NA())) ->  | E34: =IF(B34="",NA(),IFERROR(INDEX('Wprowadzanie danych finansowych'!$B$6:$I$30,$A34,E$6),NA())) ->  | F34: =IF(B34="",NA(),IFERROR(INDEX('Wprowadzanie danych finansowych'!$B$6:$I$30,$A34,F$6),NA())) ->  | G34: =IF(B34="",NA(),IFERROR(INDEX('Wprowadzanie danych finansowych'!$B$6:$I$30,$A34,G$6),NA())) -> 
A35: =ROWS($B$15:B35) -> 21 | B35: =IF('Wprowadzanie danych finansowych'!B26=0,"",'Wprowadzanie danych finansowych'!B26) ->  | C35: =IF(B35="",NA(),IFERROR(INDEX('Wprowadzanie danych finansowych'!$B$6:$I$30,$A35,C$6),NA())) ->  | D35: =IF(B35="",NA(),IFERROR(INDEX('Wprowadzanie danych finansowych'!$B$6:$I$30,$A35,D$6),NA())) ->  | E35: =IF(B35="",NA(),IFERROR(INDEX('Wprowadzanie danych finansowych'!$B$6:$I$30,$A35,E$6),NA())) ->  | F35: =IF(B35="",NA(),IFERROR(INDEX('Wprowadzanie danych finansowych'!$B$6:$I$30,$A35,F$6),NA())) ->  | G35: =IF(B35="",NA(),IFERROR(INDEX('Wprowadzanie danych finansowych'!$B$6:$I$30,$A35,G$6),NA())) -> 
A36: =ROWS($B$15:B36) -> 22 | B36: =IF('Wprowadzanie danych finansowych'!B27=0,"",'Wprowadzanie danych finansowych'!B27) ->  | C36: =IF(B36="",NA(),IFERROR(INDEX('Wprowadzanie danych finansowych'!$B$6:$I$30,$A36,C$6),NA())) ->  | D36: =IF(B36="",NA(),IFERROR(INDEX('Wprowadzanie danych finansowych'!$B$6:$I$30,$A36,D$6),NA())) ->  | E36: =IF(B36="",NA(),IFERROR(INDEX('Wprowadzanie danych finansowych'!$B$6:$I$30,$A36,E$6),NA())) ->  | F36: =IF(B36="",NA(),IFERROR(INDEX('Wprowadzanie danych finansowych'!$B$6:$I$30,$A36,F$6),NA())) ->  | G36: =IF(B36="",NA(),IFERROR(INDEX('Wprowadzanie danych finansowych'!$B$6:$I$30,$A36,G$6),NA())) -> 
A37: =ROWS($B$15:B37) -> 23 | B37: =IF('Wprowadzanie danych finansowych'!B28=0,"",'Wprowadzanie danych finansowych'!B28) ->  | C37: =IF(B37="",NA(),IFERROR(INDEX('Wprowadzanie danych finansowych'!$B$6:$I$30,$A37,C$6),NA())) ->  | D37: =IF(B37="",NA(),IFERROR(INDEX('Wprowadzanie danych finansowych'!$B$6:$I$30,$A37,D$6),NA())) ->  | E37: =IF(B37="",NA(),IFERROR(INDEX('Wprowadzanie danych finansowych'!$B$6:$I$30,$A37,E$6),NA())) ->  | F37: =IF(B37="",NA(),IFERROR(INDEX('Wprowadzanie danych finansowych'!$B$6:$I$30,$A37,F$6),NA())) ->  | G37: =IF(B37="",NA(),IFERROR(INDEX('Wprowadzanie danych finansowych'!$B$6:$I$30,$A37,G$6),NA())) -> 
A38: =ROWS($B$15:B38) -> 24 | B38: =IF('Wprowadzanie danych finansowych'!B29=0,"",'Wprowadzanie danych finansowych'!B29) ->  | C38: =IF(B38="",NA(),IFERROR(INDEX('Wprowadzanie danych finansowych'!$B$6:$I$30,$A38,C$6),NA())) ->  | D38: =IF(B38="",NA(),IFERROR(INDEX('Wprowadzanie danych finansowych'!$B$6:$I$30,$A38,D$6),NA())) ->  | E38: =IF(B38="",NA(),IFERROR(INDEX('Wprowadzanie danych finansowych'!$B$6:$I$30,$A38,E$6),NA())) ->  | F38: =IF(B38="",NA(),IFERROR(INDEX('Wprowadzanie danych finansowych'!$B$6:$I$30,$A38,F$6),NA())) ->  | G38: =IF(B38="",NA(),IFERROR(INDEX('Wprowadzanie danych finansowych'!$B$6:$I$30,$A38,G$6),NA())) -> 
A39: =ROWS($B$15:B39) -> 25 | B39: =IF('Wprowadzanie danych finansowych'!B30=0,"",'Wprowadzanie danych finansowych'!B30) ->  | C39: =IF(B39="",NA(),IFERROR(INDEX('Wprowadzanie danych finansowych'!$B$6:$I$30,$A39,C$6),NA())) ->  | D39: =IF(B39="",NA(),IFERROR(INDEX('Wprowadzanie danych finansowych'!$B$6:$I$30,$A39,D$6),NA())) ->  | E39: =IF(B39="",NA(),IFERROR(INDEX('Wprowadzanie danych finansowych'!$B$6:$I$30,$A39,E$6),NA())) ->  | F39: =IF(B39="",NA(),IFERROR(INDEX('Wprowadzanie danych finansowych'!$B$6:$I$30,$A39,F$6),NA())) ->  | G39: =IF(B39="",NA(),IFERROR(INDEX('Wprowadzanie danych finansowych'!$B$6:$I$30,$A39,G$6),NA())) -> 
